bitfinex/quotes_SOLUSD_20250424
["timestamp","ask_amount","ask_price","bid_price","bid_amount"]
[1745466097112,13.9924242,148.35,148.3,13.9924242]
[1745466097317,14.72,148.34,148.3,13.9924242]
[1745466098113,6.74172453,148.33,148.3,13.9924242]
[1745466098532,22.26434873,148.33,148.29,14.0554242]
[1745466099055,8.27192453,148.33,148.29,14.0554242]
[1745466099431,25.12623586,148.33,148.29,0.063]
[1745466099733,25.12623586,148.33,148.29,14.0554242]
[1745466100461,25.12623586,148.33,148.29,0.063]
[1745466100760,25.12623586,148.33,148.29,14.0554242]
[1745466100959,25.12623586,148.33,148.29,0.063]
[1745466101254,25.12623586,148.33,148.29,14.0554242]
[1745466101851,13.9924242,148.31,148.29,0.063]
[1745466102049,13.9924242,148.3,148.28,0.063]
[1745466102258,39.11866006,148.33,148.28,0.063]
[1745466102259,25.12623586,148.33,148.28,0.063]
[1745466102442,25.12623586,148.33,148.3,13.9924242]
[1745466105568,25.12623586,148.33,148.29,13.9924242]
[1745466106470,13.9924242,148.32,148.28,0.063]
[1745466106645,39.11866006,148.33,148.28,14.0554242]
[1745466106854,25.12623586,148.33,148.3,13.9924242]
[1745466107266,25.12623586,148.33,148.29,13.9924242]
[1745466107969,25.12623586,148.33,148.3,13.9924242]
[1745466108469,25.12623586,148.33,148.28,0.063]
[1745466108664,58.83485852,148.33,148.28,0.063]
[1745466108875,13.9924242,148.32,148.28,0.063]
[1745466109173,72.82728272,148.33,148.28,14.0554242]
[1745466109476,67.79497874,148.33,148.28,9.02312022]
[1745466110351,23.59921785,148.31,148.28,9.02312022]
[1745466111364,23.59921785,148.31,148.28,0.063]
[1745466111758,23.59921785,148.31,148.28,9.02312022]
[1745466111961,23.59921785,148.31,148.29,8.96012022]
[1745466112433,25.8167044,148.31,148.28,0.063]
[1745466112638,8.96012022,148.29,148.28,1e-08]
[1745466112836,23.54012022,148.29,148.28,1e-08]
[1745466113057,25.11392022,148.29,148.28,1e-08]
[1745466114374,25.11392022,148.29,148.26,1e-08]
[1745466114579,15.7045729,148.27,148.26,1e-08]
[1745466114796,6.74445268,148.27,148.26,1e-08]
[1745466116380,6.74414307,148.28,148.26,8.96012023]
[1745466116543,23.59867748,148.32,148.27,8.96012022]
[1745466116738,23.59867748,148.32,148.26,1e-08]
[1745466116967,23.59867748,148.32,148.28,8.96012022]
[1745466117175,23.59867748,148.32,148.29,8.96012022]
[1745466118181,23.59867748,148.32,148.3,8.96012022]
[1745466118644,6.74217907,148.32,148.31,8.96012022]
[1745466118841,6.74217907,148.32,148.26,35.84048089]
[1745466119070,6.74217907,148.32,148.31,8.96012022]
[1745466119566,6.74217907,148.32,148.26,35.84048089]
[1745466119770,6.74217907,148.32,148.31,8.96012022]
[1745466120278,6.74036128,148.36,148.31,8.96012022]
[1745466120460,6.74036128,148.36,148.34,8.96012022]
[1745466120858,6.74036128,148.36,148.29,1.34828121]
[1745466121074,6.74036128,148.36,148.26,1e-08]
[1745466121075,8.96012022,148.32,148.26,1e-08]
[1745466121405,23.59126448,148.36,148.31,8.96012022]
[1745466121706,8.96012022,148.34,148.29,8.96012022]
[1745466122059,23.59126448,148.36,148.3,8.96012022]
[1745466122291,32.5513847,148.36,148.31,8.96012022]
[1745466122590,8.96012022,148.35,148.31,8.96012022]
[1745466122766,23.59126448,148.36,148.33,8.96012022]
[1745466124182,23.59126448,148.36,148.32,8.96012022]
[1745466124663,23.59126448,148.36,148.33,8.96012022]
[1745466124863,6.74036128,148.36,148.35,8.96012022]
[1745466125988,6.74036128,148.36,148.34,8.96012022]
[1745466126175,32.5513847,148.36,148.29,26.0]
[1745466126388,23.59126448,148.36,148.32,8.96012022]
[1745466126586,23.59126448,148.36,148.34,8.96012022]
[1745466126587,6.74036128,148.36,148.34,8.96012022]
[1745466126891,6.74036128,148.36,148.29,26.0]
[1745466127097,6.74036128,148.36,148.32,8.96012022]
[1745466127669,23.59126448,148.36,148.32,8.96012022]
[1745466128292,6.74036128,148.36,148.34,8.96012022]
[1745466128691,6.74036128,148.36,148.32,8.96012022]
[1745466128891,8.96012022,148.35,148.3,8.96012022]
[1745466129596,23.59126448,148.36,148.32,8.96012022]
[1745466129999,23.59126448,148.36,148.33,8.96012022]
[1745466130205,6.74036128,148.36,148.34,8.96012022]
[1745466130780,6.74036128,148.36,148.33,8.96012022]
[1745466131708,38.16979744,148.37,148.33,8.96012022]
[1745466131891,38.16979744,148.37,148.34,8.96012022]
[1745466133297,38.16979744,148.37,148.33,8.96012022]
[1745466134215,21.31990698,148.37,148.35,8.96012022]
[1745466134887,21.31990698,148.37,148.34,8.96012022]
[1745466135197,21.31990698,148.37,148.3,32.88504904]
[1745466135387,21.31990698,148.37,148.35,8.96012022]
[1745466135791,21.31990698,148.37,148.36,8.96012022]
[1745466136083,21.31990698,148.37,148.3,32.88504904]
[1745466136084,21.31990698,148.37,148.35,8.96012022]
[1745466136496,21.31990698,148.37,148.36,8.96012022]
[1745466137003,21.31990698,148.37,148.34,8.96012022]
[1745466137196,21.31990698,148.37,148.3,26.14216157]
[1745466137407,47.12979467,148.37,148.3,26.0]
[1745466137585,8.96012022,148.35,148.26,35.84048089]
[1745466137798,8.96012022,148.35,148.3,8.96012022]
[1745466138094,23.59285472,148.35,148.31,8.96012022]
[1745466139906,6.74081563,148.35,148.33,8.96012022]
[1745466140112,6.74081563,148.35,148.29,26.0]
[1745466140113,6.74036128,148.36,148.34,8.96012022]
[1745466141710,6.74036128,148.36,148.33,8.96012022]
[1745466141909,6.74036128,148.36,148.34,8.96012022]
[1745466142916,6.74036128,148.36,148.3,0.14216157]
[1745466143224,6.74036128,148.36,148.34,8.96012022]
[1745466143387,14.58,148.37,148.3,0.14216157]
[1745466143726,0.03,148.39,148.36,8.96012022]
[1745466143885,0.03,148.39,148.37,8.96012022]
[1745466145211,0.03,148.39,148.38,8.96012022]
[1745466150100,0.03,148.39,148.32,6.3967]
[1745466150298,0.03,148.39,148.32,26.14216157]
[1745466150630,0.03,148.39,148.35,8.96012022]
[1745466152218,23.61649504,148.39,148.35,8.96012022]
[1745466152395,6.76899858,148.39,148.37,8.96012022]
[1745466152714,0.03,148.39,148.33,0.14216157]
[1745466152919,0.03,148.39,148.31,32.74245546]
[1745466152920,8.99012022,148.39,148.31,32.74245546]
[1745466153095,0.03,148.39,148.35,8.96012022]
[1745466153295,10.63632022,148.39,148.31,26.14216157]
[1745466153593,25.33632022,148.39,148.34,8.96012022]
[1745466154321,23.58808464,148.38,148.34,8.96012022]
[1745466154622,23.58808464,148.38,148.35,8.96012022]
[1745466156996,23.58808464,148.38,148.34,8.96012022]
[1745466157411,32.54820486,148.38,148.32,8.96012022]
[1745466157602,32.54820486,148.38,148.33,8.96012022]
[1745466158318,23.58808464,148.38,148.33,8.96012022]
[1745466158614,23.58808464,148.38,148.34,8.96012022]
[1745466159116,32.54820486,148.38,148.33,8.96012022]
[1745466159823,23.58808464,148.38,148.33,8.96012022]
[1745466160018,23.58808464,148.38,148.34,8.96012022]
[1745466160229,6.73945275,148.38,148.36,8.96012022]
[1745466160411,6.73945275,148.38,148.31,0.14216157]
[1745466160604,6.73945275,148.38,148.37,8.96012022]
[1745466160919,0.03,148.39,148.37,8.96012022]
[1745466161221,6.76899858,148.39,148.38,8.96012022]
[1745466161418,6.76899858,148.39,148.37,8.96012022]
[1745466162121,6.76899858,148.39,148.35,8.96012022]
[1745466162500,6.76899858,148.39,148.31,32.88474689]
[1745466162699,6.76899858,148.39,148.35,8.96012022]
[1745466162899,6.76899858,148.39,148.31,32.88474689]
[1745466162900,32.57661526,148.39,148.34,8.96012022]
[1745466163120,14.52,148.38,148.34,8.96012022]
[1745466163299,14.52,148.38,148.35,8.96012022]
[1745466164627,14.52,148.38,148.34,8.96012022]
[1745466164929,34.19599467,148.37,148.28,6.1669]
[1745466165316,8.96012022,148.36,148.31,8.96012022]
[1745466166016,8.96012022,148.35,148.3,8.96012022]
[1745466166530,8.96012022,148.36,148.31,8.96012022]
[1745466166903,23.59285472,148.35,148.31,8.96012022]
[1745466167106,8.96012022,148.34,148.29,8.96012022]
[1745466167304,13.99757036,148.34,148.29,13.99757036]
[1745466167818,13.99757036,148.34,148.3,13.99757036]
[1745466168021,37.59042508,148.35,148.31,13.99757036]
[1745466168827,13.99757036,148.32,148.28,13.99757036]
[1745466169009,6.74263367,148.31,148.27,13.99757036]
[1745466169207,39.14608821,148.31,148.26,13.99757037]
[1745466169426,13.99757036,148.29,148.26,1e-08]
[1745466170528,13.99757036,148.27,148.26,1e-08]
[1745466170900,20.74202304,148.27,148.26,1e-08]
[1745466171100,6.74445268,148.27,148.26,1e-08]
[1745466171720,20.74202304,148.27,148.26,1e-08]
[1745466172103,6.74445268,148.27,148.26,1e-08]
[1745466173109,6.74445268,148.27,148.23,4.06057037]
[1745466174233,21.26408002,148.28,148.26,13.99757036]
[1745466174734,21.26408002,148.28,148.25,13.99757036]
[1745466175104,21.26408002,148.28,148.22,0.063]
[1745466175329,21.26408002,148.28,148.24,13.99757036]
[1745466175919,21.26408002,148.28,148.22,0.063]
[1745466175920,21.26408002,148.28,148.25,13.99757036]
[1745466176121,21.26408002,148.28,148.22,0.063]
[1745466176325,21.26408002,148.28,148.24,13.99757036]
[1745466176529,35.26165038,148.28,148.23,13.99757036]
[1745466176733,52.12164498,148.28,148.22,0.063]
[1745466176929,52.12164498,148.28,148.23,13.99757036]
[1745466177536,13.99757036,148.24,148.22,0.063]
[1745466177736,14.54,148.23,148.22,0.063]
[1745466179841,21.28627268,148.23,148.22,0.063]
[1745466181433,21.28627268,148.23,148.22,14.06057036]
[1745466181619,6.74490759,148.26,148.22,14.06057036]
[1745466181829,6.74490759,148.26,148.25,13.99757036]
[1745466182332,6.74453914,148.27,148.25,13.99757036]
[1745466182546,6.74453914,148.27,148.26,13.99757036]
[1745466182727,21.28413655,148.28,148.26,13.99757036]
[1745466182927,21.28413655,148.28,148.27,13.99757036]
[1745466183649,6.74413655,148.28,148.27,13.99757036]
[1745466183837,6.74308833,148.3,148.27,13.99757036]
[1745466184231,6.74308833,148.3,148.22,6.95181644]
[1745466184534,6.74308833,148.3,148.26,13.99757036]
[1745466184713,6.74308833,148.3,148.27,13.99757036]
[1745466185419,6.74308833,148.3,148.28,13.99757036]
[1745466185634,6.74308833,148.3,148.29,13.99757036]
[1745466185815,6.74263367,148.31,148.29,13.99757036]
[1745466186947,6.74226172,148.32,148.3,13.99757036]
[1745466187444,6.74226172,148.32,148.31,13.99757036]
[1745466187920,6.74081563,148.35,148.31,13.99757036]
[1745466188119,23.59285472,148.35,148.31,13.99757036]
[1745466188539,37.59042508,148.35,148.3,13.99757036]
[1745466189856,23.59285472,148.35,148.3,13.99757036]
[1745466190023,37.59042508,148.35,148.3,13.99757036]
[1745466190755,13.99757036,148.34,148.26,27.49064825]
[1745466190954,13.99757036,148.31,148.26,13.99757036]
[1745466191543,13.99757036,148.29,148.22,0.063]
[1745466191746,13.99757036,148.29,148.24,13.99757036]
[1745466191950,6.74399784,148.28,148.24,13.99757036]
[1745466192553,6.74399784,148.28,148.25,13.99757036]
[1745466193942,6.74354305,148.29,148.25,13.99757036]
[1745466196151,20.74111341,148.29,148.24,13.99757036]
[1745466196461,13.99757036,148.28,148.23,13.99757036]
[1745466196755,20.74111341,148.29,148.24,13.99757036]
[1745466197253,20.74111341,148.29,148.25,13.99757036]
[1745466197556,6.74354305,148.29,148.27,13.99757036]
[1745466197952,6.74354305,148.29,148.26,13.99757036]
[1745466198161,6.74308833,148.3,148.26,13.99757036]
[1745466199455,20.74065869,148.3,148.22,32.95174679]
[1745466199633,20.74065869,148.3,148.25,13.99757036]
[1745466199964,6.74308833,148.3,148.23,0.14216157]
[1745466200259,6.74308833,148.3,148.26,13.99757036]
[1745466200756,6.74308833,148.3,148.27,13.99757036]
[1745466200956,20.74065869,148.3,148.25,13.99757036]
[1745466201756,6.74308833,148.3,148.26,13.99757036]
[1745466201938,20.74065869,148.3,148.25,13.99757036]
[1745466202332,13.99757036,148.28,148.23,13.99757036]
[1745466202557,20.74202304,148.27,148.22,0.063]
[1745466202761,13.99757036,148.25,148.22,0.063]
[1745466202932,39.23085475,148.27,148.22,14.06057036]
[1745466203348,13.99757036,148.26,148.22,0.063]
[1745466204359,25.23328439,148.27,148.23,13.99757036]
[1745466205533,39.23085475,148.27,148.22,14.06057036]
[1745466206361,39.23085475,148.27,148.22,0.063]
[1745466206563,39.23085475,148.27,148.22,14.06057036]
[1745466207069,8.37215268,148.27,148.23,13.99757036]
[1745466207265,8.37215268,148.27,148.24,13.99757036]
[1745466207564,8.37215268,148.27,148.23,13.99757036]
[1745466208759,6.74445268,148.27,148.24,13.99757036]
[1745466208963,6.74445268,148.27,148.25,13.99757036]
[1745466209259,6.74445268,148.27,148.22,0.20516157]
[1745466209466,6.74445268,148.27,148.24,13.99757036]
[1745466210365,6.74445268,148.27,148.25,13.99757036]
[1745466211149,6.74445268,148.27,148.26,13.99757036]
[1745466211654,6.74354305,148.29,148.26,13.99757036]
[1745466212653,23.60083357,148.3,148.26,13.99757036]
[1745466215066,23.60083357,148.3,148.22,6.95170692]
[1745466215266,6.74308833,148.3,148.27,8.96089596]
[1745466215449,6.74308833,148.3,148.28,8.96089596]
[1745466217071,1.6314,148.35,148.29,8.96089596]
[1745466217380,1.6314,148.35,148.33,8.96089596]
[1745466218046,6.74127005,148.34,148.33,8.96089596]
[1745466219378,6.74127005,148.34,148.32,13.99130565]
[1745466220271,6.74127005,148.34,148.31,13.99130565]
[1745466221484,6.74127005,148.34,148.32,13.99130565]
[1745466223279,6.74127005,148.34,148.31,13.99130565]
[1745466223454,6.74127005,148.34,148.3,13.99130565]
[1745466224082,20.7325757,148.34,148.29,13.99130565]
[1745466224300,37.58575083,148.34,148.29,13.99130565]
[1745466225174,23.59444518,148.34,148.3,13.99130565]
[1745466225684,6.74127005,148.34,148.32,13.99130565]
[1745466227264,8.37226604,148.35,148.32,13.99130565]
[1745466228680,0.03,148.35,148.34,13.99130565]
[1745466228878,0.03,148.35,148.34,14.13346722]
[1745466229282,0.03,148.35,148.34,15.48130623]
[1745466229669,0.03,148.39,148.35,44.79181043]
[1745466229904,0.03,148.39,148.38,14.13346722]
[1745466231085,0.03,148.39,148.38,13.99130565]
[1745466231289,0.03,148.39,148.38,14.13346722]
[1745466232890,0.03,148.39,148.38,15.4809345]
[1745466233694,0.03,148.39,148.38,36.2116929]
[1745466234976,0.03,148.39,148.38,80.86134176]
[1745466236182,0.03,148.41,148.39,18.79181043]
[1745466236379,0.03,148.42,148.41,0.14216157]
[1745466236597,0.03,148.42,148.41,40.13346722]
[1745466236797,0.03,148.42,148.41,14.13346722]
[1745466236988,0.03,148.44,148.41,32.78311608]
[1745466237192,0.03,148.45,148.41,32.78311608]
[1745466237193,0.03,148.45,148.43,58.78311608]
[1745466237507,0.03,148.45,148.44,15.48020077]
[1745466238078,0.03,148.45,148.44,22.21692941]
[1745466241188,0.03,148.45,148.44,26.0]
[1745466241393,0.03,148.45,148.44,39.99130565]
[1745466241700,0.03,148.45,148.44,40.13346722]
[1745466241898,0.03,148.45,148.44,39.99130565]
[1745466242303,0.03,148.45,148.44,40.13346722]
[1745466243612,0.03,148.45,148.44,13.99130565]
[1745466243784,0.03,148.45,148.43,39.99130565]
[1745466243984,0.03,148.45,148.43,0.14216157]
[1745466244483,14.02130565,148.45,148.36,14.22]
[1745466244683,15.50190565,148.42,148.37,13.99130565]
[1745466244889,15.50190565,148.42,148.38,26.0]
[1745466245401,1.5106,148.42,148.38,39.99130565]
[1745466245710,6.73809042,148.41,148.38,26.0]
[1745466247700,6.73809042,148.41,148.38,39.99130565]
[1745466248002,8.24836276,148.42,148.38,39.99130565]
[1745466248604,8.24836276,148.42,148.39,26.0]
[1745466249105,1.5106,148.42,148.39,39.99130565]
[1745466249407,1.6597,148.45,148.41,13.99130565]
[1745466249609,8.39603737,148.45,148.43,13.99130565]
[1745466251108,8.39603737,148.45,148.42,13.99130565]
[1745466252612,22.38734302,148.45,148.4,13.99130565]
[1745466252913,13.99130565,148.44,148.39,39.99130565]
[1745466253204,39.22803012,148.45,148.4,13.99130565]
[1745466254420,13.99130565,148.43,148.39,26.0]
[1745466254721,6.73763643,148.42,148.39,26.0]
[1745466255197,13.99130565,148.41,148.37,13.99130565]
[1745466255403,34.82894208,148.42,148.37,13.99130565]
[1745466256513,51.67303317,148.42,148.37,13.99130565]
[1745466257600,37.68172752,148.42,148.37,13.99130565]
[1745466257801,20.83763643,148.42,148.39,13.99130565]
[1745466258422,20.83763643,148.42,148.4,13.99130565]
[1745466259123,20.83763643,148.42,148.39,13.99130565]
[1745466259425,14.1,148.42,148.41,13.99130565]
[1745466259624,6.73734248,148.43,148.41,13.99130565]
[1745466259829,1.6597,148.45,148.42,13.99130565]
[1745466260001,1.6597,148.45,148.43,13.99130565]
[1745466260619,1.6597,148.45,148.4,13.99130565]
[1745466260620,1.6597,148.45,148.44,13.99130565]
[1745466263130,8.39597484,148.45,148.44,13.99130565]
[1745466263317,1.6597,148.45,148.44,13.99130565]
[1745466263629,8.39597484,148.45,148.44,13.99130565]
[1745466263945,1.6597,148.45,148.44,13.99130565]
[1745466264537,8.39597484,148.45,148.44,13.99130565]
[1745466265448,8.39597484,148.45,148.43,13.99130565]
[1745466266542,8.39597484,148.45,148.42,13.99130565]
[1745466268331,8.39597484,148.45,148.43,13.99130565]
[1745466269349,0.03,148.45,148.44,14.13346722]
[1745466271314,0.03,148.45,148.41,19.99693653]
[1745466271518,1.5875,148.43,148.36,1.34708642]
[1745466271754,15.57880565,148.43,148.34,6.74113317]
[1745466272059,6.73763643,148.42,148.36,26.0]
[1745466272349,6.73763643,148.42,148.39,13.99130565]
[1745466272719,6.73763643,148.42,148.38,13.99130565]
[1745466274234,20.72894208,148.42,148.37,0.14216157]
[1745466274439,20.72894208,148.42,148.37,13.99130565]
[1745466274967,13.99130565,148.41,148.37,13.99130565]
[1745466275120,6.73854447,148.4,148.37,13.99130565]
[1745466276629,6.73854447,148.4,148.38,13.99130565]
[1745466277642,6.73854447,148.4,148.36,0.14216157]
[1745466277944,6.73854447,148.4,148.36,14.13346722]
[1745466278143,6.73854447,148.4,148.37,13.99130565]
[1745466278854,6.73809042,148.41,148.37,13.99130565]
[1745466279758,6.73779506,148.42,148.39,13.99130565]
[1745466279936,6.73779506,148.42,148.4,13.99130565]
[1745466280355,8.32469672,148.43,148.4,13.99130565]
[1745466280544,8.32469672,148.43,148.41,13.99130565]
[1745466280744,8.32469672,148.43,148.4,13.99130565]
[1745466282653,8.32469672,148.43,148.39,0.14216157]
[1745466282840,8.32469672,148.43,148.39,14.13346722]
[1745466284061,22.31600237,148.43,148.39,0.14216157]
[1745466284262,22.31600237,148.43,148.38,13.99130565]
[1745466284771,25.16765299,148.43,148.36,39.99130565]
[1745466284965,13.99130565,148.42,148.37,13.99130565]
[1745466285638,20.72939607,148.41,148.36,39.99130565]
[1745466285839,20.72939607,148.41,148.37,13.99130565]
[1745466286360,20.72939607,148.41,148.38,13.99130565]
[1745466286361,6.73809042,148.41,148.38,13.99130565]
[1745466286842,6.73773913,148.42,148.39,13.99130565]
[1745466287164,6.73773913,148.42,148.4,13.99130565]
[1745466287376,6.73773913,148.42,148.39,13.99130565]
[1745466288265,6.73773913,148.42,148.38,13.99130565]
[1745466288457,20.72904478,148.42,148.37,0.14216157]
[1745466288660,20.72904478,148.42,148.37,14.13346722]
[1745466288976,20.72904478,148.42,148.36,26.0]
[1745466289261,20.72904478,148.42,148.34,26.0]
[1745466289262,6.4979,148.41,148.34,26.0]
[1745466289466,13.99130565,148.4,148.35,39.99130565]
[1745466289848,6.73899858,148.39,148.36,13.99130565]
[1745466292063,6.73854447,148.4,148.37,13.99130565]
[1745466292369,6.73854447,148.4,148.39,13.99130565]
[1745466292747,6.73854447,148.4,148.38,13.99130565]
[1745466293669,6.73854447,148.4,148.37,13.99130565]
[1745466294472,1.5322,148.37,148.32,14.05430565]
[1745466294667,1.5322,148.37,148.33,13.99130565]
[1745466294984,1.5322,148.37,148.35,13.99130565]
[1745466296277,20.73166693,148.36,148.32,0.063]
[1745466296474,13.99130565,148.34,148.32,0.063]
[1745466296655,34.96920565,148.35,148.32,0.063]
[1745466296856,20.9779,148.35,148.32,14.05430565]
[1745466297057,34.96920565,148.35,148.32,0.063]
[1745466297253,13.99130565,148.33,148.32,0.063]
[1745466298074,20.9779,148.35,148.32,0.063]
[1745466298386,13.99130565,148.33,148.32,0.063]
[1745466298593,6.74172453,148.33,148.32,0.063]
[1745466300458,20.9779,148.35,148.32,14.05430565]
[1745466300654,14.48,148.34,148.33,13.99130565]
[1745466300976,14.48,148.34,148.32,0.063]
[1745466301167,13.99130565,148.33,148.32,0.063]
[1745466301751,14.48,148.34,148.32,0.063]
[1745466302569,6.74172453,148.33,148.32,0.063]
[1745466302776,6.4979,148.35,148.32,14.05430565]
[1745466302976,1.5322,148.37,148.34,13.99130565]
[1745466303173,1.5322,148.37,148.36,13.99130565]
[1745466303481,8.27210698,148.37,148.36,13.99130565]
[1745466303681,1.5322,148.37,148.36,13.99130565]
[1745466304286,8.27220543,148.37,148.32,0.20516157]
[1745466304464,8.27220543,148.37,148.34,13.99130565]
[1745466304658,1.5322,148.37,148.33,13.99130565]
[1745466304873,8.27212113,148.37,148.34,13.99130565]
[1745466305064,8.27212113,148.37,148.32,0.20516157]
[1745466305665,13.99130565,148.34,148.32,0.063]
[1745466305974,13.99130565,148.35,148.31,0.063]
[1745466305975,18.64964886,148.32,148.31,0.063]
[1745466306175,15.38,148.32,148.31,0.063]
[1745466306376,55.37130565,148.32,148.3,0.063]
[1745466306570,13.99130565,148.31,148.3,0.063]
[1745466306767,20.73393932,148.31,148.25,0.063]
[1745466307080,1.5471,148.27,148.26,0.063]
[1745466307489,25.14631785,148.31,148.26,14.05430565]
[1745466307666,39.1376235,148.31,148.26,14.05430565]
[1745466307988,22.28103932,148.31,148.26,14.05430565]
[1745466308286,1.5471,148.31,148.3,13.99130565]
[1745466308485,1.5471,148.35,148.3,13.99130565]
[1745466308783,8.28797659,148.35,148.33,13.99130565]
[1745466309170,8.28797659,148.35,148.34,13.99130565]
[1745466309365,6.7404547,148.36,148.34,13.99130565]
[1745466310591,6.7404547,148.36,148.33,13.99130565]
[1745466310896,8.2862046,148.39,148.34,26.0]
[1745466311199,39.12500671,148.39,148.34,13.99130565]
[1745466311500,47.51464061,148.39,148.34,22.38093955]
[1745466311699,25.13370106,148.39,148.35,22.38093955]
[1745466311885,8.2862046,148.39,148.38,22.38093955]
[1745466312074,6.7391046,148.39,148.34,18.79181043]
[1745466312395,6.7391046,148.39,148.38,22.38093955]
[1745466312569,6.73809042,148.41,148.38,22.38093955]
[1745466313373,23.58331648,148.41,148.34,0.14216157]
[1745466313594,45.96425603,148.41,148.36,22.38093955]
[1745466313802,6.73809042,148.41,148.37,22.38093955]
[1745466315098,22.38093955,148.39,148.34,22.38093955]
[1745466315598,23.58331648,148.41,148.37,22.38093955]
[1745466316092,45.96425603,148.41,148.36,22.38093955]
[1745466316684,22.38093955,148.4,148.35,22.38093955]
[1745466317595,6.73899858,148.39,148.36,22.38093955]
[1745466317900,6.73899858,148.39,148.35,22.38093955]
[1745466318081,6.73899858,148.39,148.36,22.38093955]
[1745466318676,6.73899858,148.39,148.34,0.14216157]
[1745466318994,6.73899858,148.39,148.35,22.38093955]
[1745466319299,6.73899858,148.39,148.33,26.0]
[1745466319519,22.38093955,148.35,148.28,18.64964886]
[1745466319677,22.38093955,148.33,148.26,0.063]
[1745466319877,22.38093955,148.32,148.26,0.063]
[1745466320075,22.38093955,148.32,148.27,22.38093955]
[1745466320783,16.04,148.35,148.27,22.38093955]
[1745466321105,16.04,148.35,148.32,22.38093955]
[1745466321282,16.04,148.35,148.29,0.14216157]
[1745466321479,29.1222096,148.34,148.29,22.38093955]
[1745466321803,6.74127005,148.34,148.3,22.38093955]
[1745466321980,6.74127005,148.34,148.31,22.38093955]
[1745466322987,22.78090234,148.35,148.31,22.38093955]
[1745466324211,45.16184189,148.35,148.3,22.38093955]
[1745466324393,22.38093955,148.34,148.29,22.38093955]
[1745466324592,62.01388098,148.35,148.3,22.38093955]
[1745466325012,22.38093955,148.33,148.28,26.0]
[1745466325192,22.38093955,148.33,148.28,48.38093955]
[1745466325387,6.74217907,148.32,148.28,48.38093955]
[1745466325592,6.74217907,148.32,148.29,22.38093955]
[1745466326694,6.74217907,148.32,148.3,22.38093955]
[1745466327520,6.74127005,148.34,148.31,22.38093955]
[1745466327692,6.74127005,148.34,148.32,22.38093955]
[1745466328419,22.78095102,148.35,148.33,22.38093955]
[1745466328599,16.04,148.35,148.34,22.38093955]
[1745466328795,8.35376716,148.36,148.34,22.38093955]
[1745466329120,6.73989718,148.38,148.35,22.38093955]
[1745466329305,6.73989718,148.38,148.36,22.38093955]
[1745466329810,6.73989718,148.38,148.35,22.38093955]
[1745466330002,6.73989718,148.38,148.34,22.38093955]
[1745466332124,6.73989718,148.38,148.35,22.38093955]
[1745466332340,264.89278806,148.45,148.37,22.38093955]
[1745466332341,6.73763643,148.42,148.37,22.38093955]
[1745466332624,6.73735052,148.43,148.41,22.38093955]
[1745466332796,6.73735052,148.43,148.42,22.38093955]
[1745466332992,6.73735052,148.43,148.4,22.38093955]
[1745466333427,23.58030679,148.43,148.4,22.38093955]
[1745466333926,23.58030679,148.43,148.41,22.38093955]
[1745466334720,23.58030679,148.43,148.4,22.38093955]
[1745466335123,23.58030679,148.43,148.39,22.38093955]
[1745466335306,22.38093955,148.41,148.35,26.0]
[1745466335504,22.38093955,148.42,148.37,22.38093955]
[1745466336010,6.73809042,148.41,148.37,22.38093955]
[1745466336604,6.73809042,148.41,148.39,22.38093955]
[1745466337006,6.73809042,148.41,148.4,22.38093955]
[1745466337619,6.73718251,148.43,148.4,22.38093955]
[1745466338496,6.73718251,148.43,148.41,22.38093955]
[1745466340910,6.73718251,148.43,148.42,22.38093955]
[1745466341100,6.73675459,148.44,148.42,22.38093955]
[1745466341307,6.73675459,148.44,148.43,22.38093955]
[1745466341816,6.76627484,148.45,148.39,18.79181043]
[1745466342136,6.76627484,148.45,148.43,22.38093955]
[1745466342339,6.76627484,148.45,148.41,0.14216157]
[1745466342644,6.76627484,148.45,148.42,22.38093955]
[1745466343825,0.03,148.45,148.44,22.38093955]
[1745466345407,0.03,148.45,148.41,0.14216157]
[1745466345613,0.03,148.45,148.42,22.38093955]
[1745466345813,0.03,148.45,148.43,22.38093955]
[1745466346717,0.03,148.45,148.44,22.38093955]
[1745466347123,0.03,148.45,148.41,0.14216157]
[1745466347124,0.03,148.45,148.43,22.38093955]
[1745466347541,0.03,148.45,148.44,22.38093955]
[1745466349436,0.03,148.45,148.44,13.96904681]
[1745466349734,0.03,148.45,148.44,14.11120838]
[1745466350835,0.03,148.45,148.44,13.96904681]
[1745466351225,0.03,148.45,148.42,13.96904681]
[1745466351421,0.03,148.45,148.43,13.96904681]
[1745466351621,0.03,148.45,148.44,13.96904681]
[1745466352726,0.03,148.45,148.41,26.0]
[1745466352727,0.03,148.45,148.43,13.96904681]
[1745466355030,0.03,148.45,148.44,13.96904681]